[Event "WSTCC-65 2024"]
[Site "Krakow"]
[Date "2024.07.07"]
[Round "6.11"]
[White "Trabattoni, Franco"]
[Black "Kiefer, Gerhard"]
[Result "1/2-1/2"]
[ECO "A48"]
[WhiteElo "2210"]
[BlackElo "2210"]
[Annotator "TA"]
[PlyCount "87"]
[EventDate "2024.07.01"]
[EventType "team-tourn"]
[EventCountry "POL"]
[SourceTitle "playchess.com"]
[Source "ChessBase"]
[SourceQuality "1"]
[TimeControl "40/5400+30:1800+30"]

{[%evp 12,87,1,0,0,0,0,-1,1,0,7,17,13,0,0,4,12,4,16,19,31,0,16,7,43,41,47,63,67,72,60,69,75,77,69,40,75,34,79,20,41,55,68,51,70,24,91,46,50,47,46,56,58,33,33,26,84,43,60,18,57,17,19,0,0,0,14,13,13,13,12,12,21,18,54,0,0,0]} 1. d4 {[%emt 0:00:04]} Nf6 {[%emt 0:00:06]} 2. Nf3 {[%emt 0:00:13]} g6 {[%emt 0:00:08]} 3. Bg5 {[%emt 0:00:42]} Bg7 {[%emt 0:00:09]} 4. Nbd2 {[%emt 0:00:07]} O-O {[%emt 0:00:40]} 5. e4 {[%emt 0:00:37]} d6 {[%emt 0:00:14]} 6. c3 {[%emt 0:00:41]} h6 {[%emt 0:00:24]} 7. Bh4 {[%emt 0:00:04]} c5 {[%emt 0:00:40]} 8. d5 {[%emt 0:00:50]} e6 {[%emt 0:09:21]} 9. dxe6 {[%emt 0:00:10]} Bxe6 {[%emt 0:00:10]} 10. Be2 {[%emt 0:00:10]} Nc6 {[%emt 0:06:17]} 11. O-O {[%emt 0:00:28]} Re8 {[%emt 0:09:34]} 12. Qc2 {[%emt 0:02:42]} g5 {[%emt 0:01:34]} 13. Bg3 {[%emt 0:00:06]} Nh5 {[%emt 0:02:29]} (13... Bf5 $5) 14. Bc4 {[%emt 0:19:01]} Nxg3 {[%emt 0:04:23]} 15. hxg3 {[%emt 0:01:44]} Qe7 {[%emt 0:10:39]} 16. Rfe1 {[%emt 0:01:40]} Rad8 {[%emt 0:01:48]} 17. Bd5 {[%emt 0:09:54]} Qc7 {[%emt 0:00:12]} 18. Nc4 {[%emt 0:01:28]} Bxd5 {[%emt 0:03:11]} 19. exd5 {[%emt 0:00:09]} Ne7 {[%emt 0:00:12]} 20. Ne3 {[%emt 0:08:58] White has more active pieces.} b5 {[%emt 0:02:29]} 21. a4 {[%emt 0:07:03]} a6 {[%emt 0:00:29]} 22. axb5 {[%emt 0:01:00]} axb5 {[%emt 0:00:10]} 23. g4 {[%emt 0:01:57]} Qb7 {[%emt 0:00:59]} 24. Rad1 {[%emt 0:00:26]} b4 {[%emt 0:01:48]} 25. Nc4 {[%emt 0:05:41]} (25. g3 $16) 25... bxc3 {[%emt 0:09:52]} 26. bxc3 {[%emt 0:00:07]} Qa6 {[%emt 0:00:06]} 27. Ne3 {[%emt 0:13:19]} Qa5 {[%emt 0:00:42]} 28. c4 {[%emt 0:00:32]} ({White should try} 28. Rc1 $14) 28... Bc3 {[%emt 0:07:21]} (28... Qc3 $11) 29. Re2 {[%emt 0:04:55][%cal Be1e2,Be2a2,Ba2a6][%mdl 32]} Rb8 {[%emt 0:01:17]} 30. Qd3 {[%emt 0:01:05]} Bg7 {[%emt 0:05:43]} 31. Rc1 {[%emt 0:05:35]} Qa4 {[%emt 0:04:25]} 32. Rb1 {[%emt 0:05:49]} Rxb1+ {[%emt 0:02:56]} 33. Qxb1 {[%emt 0:00:01]} Ng6 {[%emt 0:00:43]} (33... Ra8 $11 {keeps the balance.}) 34. Ra2 {[%emt 0:01:31]} Qb4 {[%emt 0:02:29]} 35. Qf5 {[%emt 0:01:45]} Rb8 {[%emt 0:10:20]} 36. Ra6 {[%emt 0:02:14]} Ne5 {[%emt 0:00:55]} 37. Nxe5 {[%emt 0:01:40]} Qe1+ {[%emt 0:01:00]} 38. Nf1 {[%emt 0:00:30]} Qxe5 {[%emt 0:01:25]} (38... Bxe5 $5 39. Ra7 $8 Rf8 $11) 39. Ne3 {[%emt 0:02:06]} Qxf5 {[%emt 0:01:24]} 40. Nxf5 {[%emt 0:00:13][%cal Og2g3]} Rb1+ {[%emt 0:01:01]} 41. Kh2 {[%emt 0:30:05][%cal Og2g3]} Rb4 {[%emt 0:04:08]} 42. Kh3 Rxc4 43. Nxd6 (43. Rxd6 $14 Rc2 44. Rc6 (44. Nxh6+ Bxh6 45. Rxh6 Rd2 $11)) 43... Rd4 $11 44. Nf5 {[%csl LRd4,LRh6] Weighted Error Value: White=0.17 (very precise) /Black=0.13 (very precise) .  Mistake:       	White=3     	Black=2      Inaccurate:     	White=6     	Black=5      OK:         	White=14    	Black=14} 1/2-1/2

[Event "WSTCC-65 2024"]
[Site "Krakow"]
[Date "2024.07.07"]
[Round "6.11"]
[White "Hammar, Bengt"]
[Black "Morriss, Pete"]
[Result "1/2-1/2"]
[ECO "B17"]
[WhiteElo "2127"]
[BlackElo "1982"]
[Annotator "RC"]
[PlyCount "82"]
[EventDate "2024.07.01"]
[EventType "team-tourn"]
[EventCountry "POL"]
[SourceTitle "playchess.com"]
[Source "ChessBase"]
[SourceQuality "1"]
[TimeControl "40/5400+30:1800+30"]

1. e4 {[%emt 0:00:26]} c6 {[%emt 0:00:14]} 2. d4 {[%emt 0:00:50]} d5 {[%emt 0:00:07]} 3. Nc3 {[%emt 0:00:40]} dxe4 {[%emt 0:00:36]} 4. Nxe4 {[%emt 0:00:11]} Nd7 {[%emt 0:00:30]} 5. Nf3 {[%emt 0:04:06]} Ngf6 {[%emt 0:00:29]} 6. Nxf6+ {[%emt 0:00:56]} Nxf6 {[%emt 0:00:09]} 7. Bc4 {[%emt 0:00:52]} Bf5 {[%emt 0:01:56]} 8. Bg5 {[%emt 0:03:18]} e6 {[%emt 0:01:51]} 9. Qe2 {[%emt 0:04:41]} Be7 {[%emt 0:02:41]} 10. h3 {[%emt 0:04:53]} h6 {[%emt 0:02:27]} 11. Bf4 {[%emt 0:01:22]} Nd5 {[%emt 0:02:57]} 12. Be5 {[%emt 0:04:45]} Qa5+ {[%emt 0:08:41]} 13. Kf1 {[%emt 0:01:52]} Rg8 {[%emt 0:04:35]} 14. c3 {[%emt 0:04:05]} O-O-O {[%emt 0:07:11]} 15. a4 {[%emt 0:02:26]} Bd6 {[%emt 0:02:56]} 16. g3 {[%emt 0:04:29]} Qc7 {[%emt 0:04:54]} 17. Kg2 {[%emt 0:03:33]} g5 {[%emt 0:04:22]} 18. Bd3 {[%emt 0:04:41]} Bxd3 {[%emt 0:01:55]} 19. Qxd3 {[%emt 0:00:08]} Bxe5 {[%emt 0:02:07]} 20. Nxe5 {[%emt 0:00:10]} Qxe5 {[%emt 0:03:06]} 21. dxe5 {[%emt 0:00:06]} Nf4+ {[%emt 0:00:24]} 22. gxf4 {[%emt 0:00:06]} gxf4+ {[%emt 0:01:25]} 23. Kf3 {[%emt 0:01:13]} Rxd3+ {[%emt 0:00:15]} 24. Kxf4 {[%emt 0:00:40]} Rd2 {[%emt 0:02:28]} 25. Ke3 {[%emt 0:00:19]} Rxb2 {[%emt 0:01:07]} 26. Rhg1 {[%emt 0:01:00]} Rxg1 {[%emt 0:07:13]} 27. Rxg1 {[%emt 0:00:31]} Rc2 {[%emt 0:00:19]} 28. Rg7 {[%emt 0:00:46]} Rxc3+ {[%emt 0:00:34]} 29. Kf4 {[%emt 0:00:08]} Rxh3 {[%emt 0:01:09]} 30. Rxf7 {[%emt 0:01:08]} Rh4+ {[%emt 0:01:02]} 31. Kg3 {[%emt 0:00:20]} Rxa4 {[%emt 0:00:16]} 32. Re7 {[%emt 0:00:07]} Re4 {[%emt 0:00:57]} 33. f4 {[%emt 0:00:11]} a5 {[%emt 0:05:12]} 34. Rxe6 {[%emt 0:00:11]} a4 {[%emt 0:00:09]} 35. Kf3 {[%emt 0:01:35]} Rb4 {[%emt 0:01:48]} 36. f5 {[%emt 0:00:22]} a3 {[%emt 0:08:54]} 37. f6 {[%emt 0:00:25]} Rb1 {[%emt 0:01:08]} 38. Ke2 {[%emt 0:00:30]} Rb2+ {[%emt 0:00:14]} 39. Ke3 {[%emt 0:00:08]} Rb3+ {[%emt 0:00:05]} 40. Ke2 {[%emt 0:00:22]} Rb2+ {[%emt 0:14:41]} 41. Ke3 {[%emt 0:30:14]} Rb3+ {[%emt 0:31:27]} 1/2-1/2

[Event "WSTCC-65 2024"]
[Site "Krakow"]
[Date "2024.07.07"]
[Round "6.11"]
[White "McMahon, Frank"]
[Black "Oehlerich, Per"]
[Result "1/2-1/2"]
[ECO "B40"]
[WhiteElo "1818"]
[BlackElo "1959"]
[Annotator "NA RC"]
[PlyCount "20"]
[EventDate "2024.07.01"]
[EventType "team-tourn"]
[EventCountry "POL"]
[SourceTitle "playchess.com"]
[Source "ChessBase"]
[SourceQuality "1"]
[TimeControl "40/5400+30:1800+30"]

1. e4 {[%emt 0:00:05]} c5 {[%emt 0:00:14]} 2. Nf3 {[%emt 0:00:10]} e6 {[%emt 0:00:22]} 3. d4 {[%emt 0:00:24]} cxd4 {[%emt 0:00:39]} 4. c3 {[%emt 0:00:15]} dxc3 {[%emt 0:02:17]} 5. Nxc3 {[%emt 0:00:06]} a6 {[%emt 0:01:24]} 6. Bd3 {[%emt 0:01:25]} Nc6 {[%emt 0:01:24]} 7. O-O {[%emt 0:00:50]} Be7 {[%emt 0:08:59]} 8. Qe2 {[%emt 0:01:42]} d6 {[%emt 0:03:47]} 9. Rd1 {[%emt 0:01:03]} Bd7 {[%emt 0:03:36]} 10. Be3 {[%emt 0:03:04]} Ne5 {[%emt 0:10:44]} 1/2-1/2

[Event "WSTCC-65 2024"]
[Site "Krakow"]
[Date "2024.07.07"]
[Round "6.12"]
[White "Vogel, Robert"]
[Black "Ceschia, Ivano"]
[Result "0-1"]
[ECO "A41"]
[WhiteElo "2085"]
[BlackElo "2180"]
[Annotator "RC"]
[PlyCount "80"]
[EventDate "2024.07.01"]
[EventType "team-tourn"]
[EventCountry "POL"]
[SourceTitle "playchess.com"]
[Source "ChessBase"]
[SourceQuality "1"]
[TimeControl "40/5400+30:1800+30"]

1. d4 {[%emt 0:00:04]} d6 {[%emt 0:00:06]} 2. c4 {[%emt 0:00:47]} f5 {[%emt 0:00:55]} 3. g3 {[%emt 0:01:43]} Nf6 {[%emt 0:00:07]} 4. Bg2 {[%emt 0:00:08]} g6 {[%emt 0:00:06]} 5. Nf3 {[%emt 0:00:54]} Bg7 {[%emt 0:00:06]} 6. O-O {[%emt 0:00:23]} O-O {[%emt 0:01:05]} 7. b3 {[%emt 0:03:02]} Qe8 {[%emt 0:28:45]} 8. Bb2 {[%emt 0:06:08]} c6 {[%emt 0:11:59]} 9. Nbd2 {[%emt 0:05:15]} h6 {[%emt 0:09:07]} 10. Re1 {[%emt 0:19:53]} Ne4 {[%emt 0:04:56]} 11. Qc2 {[%emt 0:01:51]} d5 {[%emt 0:08:23]} 12. Ne5 {[%emt 0:05:02]} g5 {[%emt 0:00:27]} 13. f3 {[%emt 0:05:29]} Nxd2 {[%emt 0:04:12]} 14. Qxd2 {[%emt 0:00:08]} dxc4 {[%emt 0:18:45]} 15. Nxc4 {[%emt 0:05:36]} Nd7 {[%emt 0:00:32]} 16. e4 {[%emt 0:04:20]} f4 {[%emt 0:00:12]} 17. d5 {[%emt 0:09:20]} Bxb2 {[%emt 0:00:31]} 18. Qxb2 {[%emt 0:00:11]} Nf6 {[%emt 0:00:15]} 19. Rad1 {[%emt 0:04:07]} Bd7 {[%emt 0:01:02]} 20. gxf4 {[%emt 0:05:00]} gxf4 {[%emt 0:00:31]} 21. Kh1 {[%emt 0:00:49]} Qh5 {[%emt 0:00:27]} 22. d6 {[%emt 0:07:12]} e6 {[%emt 0:01:00]} 23. Qe5 {[%emt 0:01:54]} Qh4 {[%emt 0:01:07]} 24. Qd4 {[%emt 0:03:10]} Kh7 {[%emt 0:00:25]} 25. Ne5 {[%emt 0:00:42]} Rg8 {[%emt 0:00:19]} 26. Re2 {[%emt 0:01:59]} Rg5 {[%emt 0:00:11]} 27. Nxd7 {[%emt 0:01:01]} Nxd7 {[%emt 0:00:11]} 28. Qf2 {[%emt 0:01:24]} Qh5 {[%emt 0:00:07]} 29. Ree1 {[%emt 0:00:47]} Rag8 {[%emt 0:00:11]} 30. Rg1 {[%emt 0:00:14]} b6 {[%emt 0:01:04]} 31. Qc2 {[%emt 0:00:34]} Ne5 {[%emt 0:00:44]} 32. Qf2 {[%emt 0:00:46]} R8g7 {[%emt 0:00:40]} 33. Qe2 {[%emt 0:01:06]} Qh4 {[%emt 0:00:20]} 34. Qe1 {[%emt 0:00:22]} Rg3 {[%emt 0:00:06]} 35. Qf2 {[%emt 0:01:36]} R7g5 {[%emt 0:00:06]} 36. Rgf1 {[%emt 0:00:52]} Rh5 {[%emt 0:01:19]} 37. Qxg3 {[%emt 0:01:07]} fxg3 {[%emt 0:00:10]} 38. h3 {[%emt 0:00:04]} Qd8 {[%emt 0:00:50]} 39. f4 {[%emt 0:00:47]} Ng4 {[%emt 0:00:06]} 40. Bf3 {[%emt 0:00:44]} Rxh3+ {[%emt 0:00:43]} 0-1

[Event "WSTCC-65 2024"]
[Site "Krakow"]
[Date "2024.07.07"]
[Round "6.12"]
[White "Andresen, Hans Jorn"]
[Black "Lynch, Peter J."]
[Result "1/2-1/2"]
[ECO "B50"]
[WhiteElo "1953"]
[BlackElo "1741"]
[Annotator "NA RC"]
[PlyCount "25"]
[EventDate "2024.07.01"]
[EventType "team-tourn"]
[EventCountry "POL"]
[SourceTitle "playchess.com"]
[Source "ChessBase"]
[SourceQuality "1"]
[TimeControl "40/5400+30:1800+30"]

1. e4 {[%emt 0:00:07]} c5 {[%emt 0:00:10]} 2. Nf3 {[%emt 0:00:19]} d6 {[%emt 0:00:11]} 3. c3 {[%emt 0:03:04]} Nf6 {[%emt 0:01:30]} 4. d3 {[%emt 0:00:37]} Nc6 {[%emt 0:01:18]} 5. Be2 {[%emt 0:00:32]} g6 {[%emt 0:02:23]} 6. O-O {[%emt 0:02:17]} Bg7 {[%emt 0:00:33]} 7. h3 {[%emt 0:01:26]} O-O {[%emt 0:05:06]} 8. Be3 {[%emt 0:02:52]} Qb6 {[%emt 0:06:00]} 9. Qc2 {[%emt 0:07:22]} Bd7 {[%emt 0:03:23]} 10. Na3 {[%emt 0:21:31]} Rfc8 {[%emt 0:05:38]} 11. Nc4 {[%emt 0:03:43]} Qc7 {[%emt 0:00:55]} 12. Bf4 {[%emt 0:02:39]} b5 {[%emt 0:02:48]} 13. e5 {[%emt 0:08:50]} 1/2-1/2

[Event "WSTCC-65 2024"]
[Site "Krakow"]
[Date "2024.07.07"]
[Round "6.12"]
[White "O`Connor, Eddie"]
[Black "Dalling, Peter"]
[Result "1-0"]
[ECO "C63"]
[WhiteElo "1953"]
[BlackElo "1877"]
[Annotator "RC"]
[PlyCount "99"]
[EventDate "2024.07.01"]
[EventType "team-tourn"]
[EventCountry "POL"]
[SourceTitle "playchess.com"]
[Source "ChessBase"]
[SourceQuality "1"]
[TimeControl "40/5400+30:1800+30"]

1. e4 {[%emt 0:00:07]} e5 {[%emt 0:00:05]} 2. Nf3 {[%emt 0:00:30]} Nc6 {[%emt 0:00:09]} 3. Bb5 {[%emt 0:01:22]} f5 {[%emt 0:02:02]} 4. d3 {[%emt 0:00:45]} d6 {[%emt 0:06:21]} 5. Nc3 {[%emt 0:00:50]} Be7 {[%emt 0:00:35]} 6. Nd5 {[%emt 0:01:57]} Nf6 {[%emt 0:07:32]} 7. Nxe7 {[%emt 0:01:46]} Qxe7 {[%emt 0:00:14]} 8. Bg5 {[%emt 0:01:57]} h6 {[%emt 0:02:14]} 9. Bxf6 {[%emt 0:00:32]} Qxf6 {[%emt 0:00:20]} 10. h3 {[%emt 0:07:45]} Bd7 {[%emt 0:02:08]} 11. Qe2 {[%emt 0:02:19]} a6 {[%emt 0:05:28]} 12. Bxc6 {[%emt 0:04:02]} Bxc6 {[%emt 0:00:45]} 13. O-O-O {[%emt 0:00:40]} O-O-O {[%emt 0:01:26]} 14. Nd2 {[%emt 0:06:18]} Rde8 {[%emt 0:02:28]} 15. f3 {[%emt 0:01:28]} g5 {[%emt 0:02:22]} 16. Nb3 Ba4 {[%emt 0:02:27]} 17. Na5 {[%emt 0:08:13]} b6 {[%emt 0:07:33]} 18. Nc4 {[%emt 0:06:39]} Kb7 19. exf5 {[%emt 0:04:08]} Qxf5 {[%emt 0:10:13]} 20. Qe4+ {[%emt 0:02:18]} Qxe4 {[%emt 0:00:14]} 21. dxe4 {[%emt 0:00:15]} Rd8 {[%emt 0:01:56]} 22. Ne3 {[%emt 0:01:55]} Bd7 {[%emt 0:02:06]} 23. Rd2 {[%emt 0:05:58]} Be6 {[%emt 0:02:01]} 24. Rhd1 {[%emt 0:02:16]} Rd7 {[%emt 0:03:30]} 25. c4 {[%emt 0:00:45]} Rhd8 {[%emt 0:00:31]} 26. b3 {[%emt 0:01:17]} a5 {[%emt 0:01:13]} 27. a4 {[%emt 0:02:31]} Rf8 {[%emt 0:03:44]} 28. Kb2 {[%emt 0:03:33]} Rg7 {[%emt 0:01:22]} 29. Kc3 {[%emt 0:00:48]} Rd7 {[%emt 0:00:52]} 30. Rb1 {[%emt 0:06:11]} c5 {[%emt 0:04:31]} 31. Rbd1 {[%emt 0:00:33]} Rfd8 {[%emt 0:02:07]} 32. Nf5 {[%emt 0:03:40]} Bxf5 {[%emt 0:00:40]} 33. exf5 {[%emt 0:00:02]} Kc6 {[%emt 0:00:42]} 34. Rd5 {[%emt 0:02:53]} Rf8 {[%emt 0:02:46]} 35. g4 {[%emt 0:01:03]} Rf6 {[%emt 0:01:19]} 36. Rh1 {[%emt 0:03:19]} h5 {[%emt 0:02:26]} 37. h4 {[%emt 0:01:10]} gxh4 {[%emt 0:06:47]} 38. Rxh4 {[%emt 0:01:03]} hxg4 {[%emt 0:01:13]} 39. fxg4 {[%emt 0:00:43]} Rg7 {[%emt 0:00:36]} 40. Kd3 {[%emt 0:05:34]} Kd7 {[%emt 0:03:35]} 41. Ke4 {[%emt 0:32:36]} Ke7 {[%emt 0:30:35]} 42. Rd3 {[%emt 0:02:41]} Rf8 {[%emt 0:04:58]} 43. Rg3 {[%emt 0:00:00]} Rfg8 {[%emt 0:00:00]} 44. Kf3 {[%emt 0:00:00]} Rf8 {[%emt 0:00:00]} 45. Ke4 {[%emt 0:00:00]} Rfg8 {[%emt 0:00:00]} 46. Kd5 {[%emt 0:00:00]} Kd7 {[%emt 0:00:00]} 47. Rh6 {[%emt 0:00:00]} Ke8 {[%emt 0:00:00]} 48. Rxd6 {[%emt 0:00:58]} Rxg4 {[%emt 0:00:00]} 49. Rxg4 {[%emt 0:01:03]} Rxg4 {[%emt 0:00:00]} 50. Kxe5 {[%emt 0:00:34]} 1-0

[Event "WSTCC-65 2024"]
[Site "Krakow"]
[Date "2024.07.07"]
[Round "6.13"]
[White "Quinn, John M"]
[Black "Pigott, John C"]
[Result "1/2-1/2"]
[ECO "E32"]
[WhiteElo "2073"]
[BlackElo "2290"]
[Annotator "TA"]
[PlyCount "55"]
[EventDate "2024.07.01"]
[EventType "team-tourn"]
[EventCountry "POL"]
[SourceTitle "playchess.com"]
[Source "ChessBase"]
[SourceQuality "1"]
[TimeControl "40/5400+30:1800+30"]

{[%evp 11,55,0,11,1,0,3,-2,0,39,33,43,47,49,47,90,56,54,41,54,47,57,41,64,37,48,43,103,90,93,89,79,89,84,58,106,113,133,132,441,47,34,36,30,35,49,46]} 1. d4 Nf6 {[%emt 0:00:32]} 2. c4 {[%emt 0:00:09]} e6 {[%emt 0:00:05]} 3. Nc3 {[%emt 0:00:07]} Bb4 {[%emt 0:00:13]} 4. Qc2 {[%emt 0:00:06]} O-O {[%emt 0:00:16]} 5. Nf3 {[%emt 0:01:33]} d5 {[%emt 0:04:07]} 6. cxd5 {[%emt 0:03:20]} exd5 {[%emt 0:00:36]} 7. Bg5 {[%emt 0:00:27][%cal Bc1g5,Bg5h4,Bh4g3][%mdl 32]} h6 {[%emt 0:00:15]} 8. Bh4 {[%emt 0:00:04]} c5 {[%emt 0:02:01]} 9. e3 {[%emt 0:02:00] The position is equal.} Nc6 {[%emt 0:10:05]} 10. dxc5 {[%emt 0:05:09]} g5 {[%emt 0:22:11]} 11. Bg3 {[%emt 0:00:57]} Ne4 {[%emt 0:06:55][%cal Od8a5]} 12. Bd3 {[%emt 0:05:04]} Qa5 {[%emt 0:03:26]} 13. O-O {[%emt 0:15:10]} Bxc3 {[%emt 0:01:14]} 14. bxc3 {[%emt 0:01:23]} Nxg3 {[%emt 0:01:11]} 15. hxg3 {[%emt 0:00:10]} Qxc5 {[%emt 0:00:06]} 16. Rab1 {[%emt 0:08:51]} Rd8 {[%emt 0:02:53]} 17. Rb5 {[%emt 0:06:41]} Qe7 {[%emt 0:02:54]} 18. Rd1 $36 {[%emt 0:03:31][%mdl 2048] Black is under pressure.} b6 {[%emt 0:02:49]} (18... Be6 $14) 19. Bh7+ {[%emt 0:06:17]} Kg7 {[%emt 0:00:06]} 20. Rbxd5 {[%emt 0:00:08] White is more active.} Rxd5 {[%emt 0:00:16]} 21. Rxd5 {[%emt 0:00:06]} Be6 {[%emt 0:00:08]} 22. Rd1 {[%emt 0:00:22]} Rc8 {[%emt 0:04:47]} (22... Bxa2 $14 23. Qxa2 Kxh7) 23. Bf5 $16 {[%emt 0:10:26]} Nb4 {[%emt 0:13:15]} 24. Qe4 {[%emt 0:11:43]} (24. cxb4 $2 Rxc2 25. Bxc2 Qxb4 $19 (25... Bxa2 $2 26. b5 $17)) 24... Nxa2 {[%emt 0:02:08][%mdl 8192] [#]} (24... Nc6 $16 {is more resistant.} 25. Bxe6 Qxe6 26. Qxe6 fxe6) 25. Qe5+ $2 {[%emt 0:00:51]} ({Only move:} 25. Nd4 $1 $18 Rc5 (25... Nxc3 $2 {perishes.} 26. Qe5+ f6 27. Qxe6 $18) 26. Nxe6+ (26. Bxe6 Nxc3 27. Qd3 Nxd1 $15) 26... fxe6 27. Bh7 (27. Bxe6 Nxc3 28. Qd4+ Kg6 $14)) 25... Qf6 $14 {[%emt 0:07:29]} 26. Bxe6 {[%emt 0:00:47]} Qxe5 {[%emt 0:00:37]} 27. Nxe5 {[%emt 0:00:08]} fxe6 {[%emt 0:00:03]} 28. Rd7+ {[%emt 0:01:41] Weighted Error Value: White=0.46/Black=0.37.  Loses game:     	---       	Black=1      Missed win:     	White=1     	---        Mistake:       	---       	Black=2      Inaccurate:     	White=3     	Black=2      OK:         	White=8     	Black=7      Best:        	---       	Black=4} 1/2-1/2

[Event "WSTCC-65 2024"]
[Site "Krakow"]
[Date "2024.07.07"]
[Round "6.13"]
[White "Falk, Thomas"]
[Black "Bhopal, Raj"]
[Result "1/2-1/2"]
[ECO "A40"]
[WhiteElo "2022"]
[BlackElo "1991"]
[Annotator "NA RC"]
[PlyCount "33"]
[EventDate "2024.07.01"]
[EventType "team-tourn"]
[EventCountry "POL"]
[SourceTitle "playchess.com"]
[Source "ChessBase"]
[SourceQuality "1"]
[TimeControl "40/5400+30:1800+30"]

1. d4 {[%emt 0:00:03]} Nf6 {[%emt 0:00:16]} 2. c4 {[%emt 0:00:09]} e6 {[%emt 0:00:23]} 3. g3 {[%emt 0:00:31]} Bb4+ {[%emt 0:00:37]} 4. Nd2 {[%emt 0:00:18]} O-O {[%emt 0:01:45]} 5. Bg2 {[%emt 0:00:09]} d5 {[%emt 0:01:08]} 6. Ngf3 {[%emt 0:00:47]} Ne4 {[%emt 0:02:41]} 7. O-O {[%emt 0:01:13]} Nxd2 {[%emt 0:01:15]} 8. Bxd2 {[%emt 0:01:01]} Be7 {[%emt 0:02:27]} 9. Qc2 {[%emt 0:01:47]} Nd7 {[%emt 0:03:12]} 10. Rac1 {[%emt 0:00:38]} c6 {[%emt 0:00:54]} 11. Rfd1 {[%emt 0:00:42]} Re8 {[%emt 0:06:16]} 12. e4 {[%emt 0:02:59]} dxe4 {[%emt 0:05:56]} 13. Qxe4 {[%emt 0:00:33]} Bf6 {[%emt 0:01:10]} 14. Ne5 {[%emt 0:01:58]} Qb6 {[%emt 0:08:17]} 15. b3 {[%emt 0:05:16]} Be7 {[%emt 0:03:57]} 16. Be3 {[%emt 0:09:32]} Nf6 {[%emt 0:01:32]} 17. Qf3 {[%emt 0:04:21]} 1/2-1/2

[Event "WSTCC-65 2024"]
[Site "Krakow"]
[Date "2024.07.07"]
[Round "6.13"]
[White "Freeman, Richard C P"]
[Black "Idesis, Yaacov"]
[Result "1-0"]
[ECO "B12"]
[WhiteElo "1951"]
[BlackElo "1879"]
[Annotator "RC"]
[PlyCount "109"]
[EventDate "2024.07.01"]
[EventType "team-tourn"]
[EventCountry "POL"]
[SourceTitle "playchess.com"]
[Source "ChessBase"]
[SourceQuality "1"]
[TimeControl "40/5400+30:1800+30"]

1. e4 {[%emt 0:00:04]} c6 {[%emt 0:00:09]} 2. d4 {[%emt 0:00:07]} d5 {[%emt 0:00:12]} 3. e5 {[%emt 0:01:01]} c5 {[%emt 0:00:08]} 4. dxc5 {[%emt 0:00:11]} e6 {[%emt 0:00:09]} 5. Qg4 {[%emt 0:02:56]} Nd7 {[%emt 0:00:20]} 6. Bb5 {[%emt 0:02:58]} Qc7 {[%emt 0:00:56]} 7. Nf3 {[%emt 0:04:28]} Ne7 {[%emt 0:05:07]} 8. O-O {[%emt 0:07:52]} Ng6 {[%emt 0:00:29]} 9. c4 {[%emt 0:19:58]} Ngxe5 {[%emt 0:03:24]} 10. Nxe5 {[%emt 0:00:47]} Qxe5 {[%emt 0:00:07]} 11. c6 {[%emt 0:06:13]} bxc6 {[%emt 0:01:09]} 12. Bxc6 {[%emt 0:00:05]} Rb8 {[%emt 0:00:32]} 13. Bf4 {[%emt 0:10:55]} Qxb2 {[%emt 0:01:47]} 14. Bxb8 {[%emt 0:00:11]} Qxa1 {[%emt 0:02:13]} 15. cxd5 {[%emt 0:01:56]} Qf6 {[%emt 0:01:08]} 16. dxe6 {[%emt 0:12:17]} Qxe6 {[%emt 0:07:56]} 17. Qxe6+ {[%emt 0:00:59]} fxe6 {[%emt 0:00:03]} 18. Bxa7 {[%emt 0:00:15]} Bd6 {[%emt 0:02:26]} 19. Nd2 {[%emt 0:07:45]} O-O {[%emt 0:02:42]} 20. Nf3 {[%emt 0:01:14]} Nf6 {[%emt 0:02:47]} 21. a4 {[%emt 0:00:43]} Rf7 {[%emt 0:02:53]} 22. Bd4 {[%emt 0:03:16]} Rc7 {[%emt 0:04:10]} 23. Bb5 {[%emt 0:01:42]} Bd7 {[%emt 0:01:48]} 24. Rd1 {[%emt 0:06:07]} Bxb5 {[%emt 0:01:50]} 25. axb5 {[%emt 0:00:09]} Ne4 {[%emt 0:11:34]} 26. Be5 {[%emt 0:03:03]} Bxe5 {[%emt 0:06:28]} 27. Nxe5 {[%emt 0:00:08]} Kf8 {[%emt 0:00:37]} 28. g3 {[%emt 0:00:19]} Rb7 {[%emt 0:00:51]} 29. b6 {[%emt 0:04:55]} Ke7 {[%emt 0:03:03]} 30. Nc4 {[%emt 0:00:12]} Nc3 {[%emt 0:00:29]} 31. Ra1 {[%emt 0:00:06]} Kf6 {[%emt 0:06:19]} 32. Ra7 {[%emt 0:00:54]} Rb8 {[%emt 0:00:13]} 33. Ra5 {[%emt 0:01:21]} Ke7 {[%emt 0:01:48]} 34. Ra7+ {[%emt 0:00:17]} Kf6 35. Ra3 Nd5 {[%emt 0:01:17]} 36. Rb3 {[%emt 0:00:42]} Rb7 {[%emt 0:00:28]} 37. Kg2 {[%emt 0:00:30]} Ke7 {[%emt 0:00:40]} 38. Kf3 {[%emt 0:01:21]} h6 {[%emt 0:01:58]} 39. h3 {[%emt 0:00:34]} g6 {[%emt 0:00:19]} 40. Ke4 {[%emt 0:00:05]} Nf6+ {[%emt 0:00:15]} 41. Kd4 {[%emt 0:30:38]} Nd7 {[%emt 0:30:15]} 42. Ne5 {[%emt 0:00:00]} Rxb6 {[%emt 0:00:00]} 43. Rxb6 {[%emt 0:00:00]} Nxb6 {[%emt 0:00:00]} 44. Nxg6+ {[%emt 0:00:00]} Kf6 {[%emt 0:00:00]} 45. Ne5 {[%emt 0:00:00]} Nd5 {[%emt 0:00:00]} 46. Ng4+ {[%emt 0:00:00]} Kg5 {[%emt 0:00:00]} 47. Ke5 {[%emt 0:00:00]} h5 {[%emt 0:00:00]} 48. Nh2 {[%emt 0:00:00]} Nc3 {[%emt 0:00:00]} 49. Kxe6 {[%emt 0:00:00]} Ne4 {[%emt 0:00:00]} 50. f4+ {[%emt 0:00:00]} Kg6 {[%emt 0:00:00]} 51. g4 {[%emt 0:00:00]} hxg4 {[%emt 0:00:00]} 52. hxg4 {[%emt 0:00:00]} Nc5+ {[%emt 0:00:00]} 53. Ke7 {[%emt 0:00:00]} Nd3 {[%emt 0:00:00]} 54. f5+ {[%emt 0:00:00]} Kg5 {[%emt 0:00:00]} 55. f6 {[%emt 0:00:00]} 1-0